bitfinex/quotes_SOLUSD_20240717
["timestamp","ask_amount","ask_price","bid_price","bid_amount"]
[1721212047215,17.29764191,163.1,163.06,14.46]
[1721212047738,23.42894191,163.1,163.07,14.46]
[1721212048237,17.29764191,163.1,163.07,14.46]
[1721212048607,15.7646,163.1,163.08,14.46]
[1721212049434,17.2974647,163.1,163.08,14.46]
[1721212050307,23.4286647,163.1,163.07,14.46]
[1721212050527,23.4286647,163.1,163.06,14.46]
[1721212052421,17.2974647,163.1,163.07,14.46]
[1721212056450,23.4286647,163.1,163.07,14.46]
[1721212056609,23.4286647,163.1,163.06,14.46]
[1721212057640,23.4286647,163.1,163.07,14.46]
[1721212060723,17.2974647,163.1,163.07,14.46]
[1721212061925,23.4287647,163.1,163.07,14.46]
[1721212062324,17.2974647,163.1,163.07,14.46]
[1721212062518,17.2974647,163.1,163.02,10.0]
[1721212062519,1.53290096,163.13,163.08,1.22632076]
[1721212062734,1.53290096,163.13,163.1,14.46]
[1721212063061,15.1575,163.14,163.1,14.46]
[1721212063062,22.81998336,163.14,163.1,14.46]
[1721212063336,22.81998336,163.14,163.11,14.46]
[1721212064920,15.1393,163.18,163.12,14.46]
[1721212065130,6.1292,163.16,163.12,14.46]
[1721212065526,6.1292,163.16,163.13,14.46]
[1721212066827,6.1297,163.14,163.12,14.46]
[1721212068632,6.1297,163.14,163.11,14.46]
[1721212068633,6.13,163.14,163.11,14.46]
[1721212068847,14.46,163.16,163.07,10.0]
[1721212069018,14.46,163.16,163.1,14.46]
[1721212069219,1.53261177,163.15,163.1,14.46]
[1721212069417,1.53261149,163.14,163.1,14.46]
[1721212070314,6.1302,163.13,163.1,14.46]
[1721212070839,7.66241128,163.14,163.1,14.46]
[1721212071841,1.53261123,163.15,163.11,14.46]
[1721212072145,1.53261123,163.15,163.12,14.46]
[1721212072346,29.5993,163.18,163.13,14.46]
[1721212072347,21.53245788,163.17,163.13,14.46]
[1721212073023,29.5993,163.18,163.07,10.0]
[1721212073024,15.1393,163.18,163.11,10.0]
[1721212073221,15.1393,163.18,163.16,14.46]
[1721212073455,15.1393,163.18,163.15,14.46]
[1721212073633,21.2675,163.18,163.15,14.46]
[1721212073945,15.1393,163.18,163.15,14.46]
[1721212075248,1.53220216,163.17,163.15,14.46]
[1721212075561,12.4485,163.19,163.15,14.46]
[1721212075851,1.53218339,163.2,163.12,59.46]
[1721212076037,1.53218339,163.2,163.17,14.46]
[1721212076234,1.53218339,163.2,163.18,14.46]
[1721212076542,27.65933358,163.21,163.18,14.46]
[1721212076945,21.53203358,163.21,163.19,14.46]
[1721212077243,22.6671,163.22,163.19,14.46]
[1721212077244,16.5404,163.22,163.19,14.46]
[1721212077446,18.07225601,163.22,163.19,14.46]
[1721212077648,18.07225601,163.22,163.2,14.46]
[1721212078156,24.19895601,163.22,163.2,14.46]
[1721212078334,7.65848007,163.23,163.21,14.46]
[1721212078647,6.1266,163.23,163.2,14.46]
[1721212078824,7.65774467,163.24,163.21,14.46]
[1721212079025,7.65774467,163.24,163.15,10.0]
[1721212079026,1.53173497,163.23,163.15,10.0]
[1721212079253,6.1267,163.22,163.19,14.46]
[1721212079457,7.65813497,163.23,163.2,14.46]
[1721212079632,6.1264,163.23,163.2,14.46]
[1721212081635,6.1264,163.23,163.19,14.46]
[1721212081949,7.65761456,163.24,163.2,14.46]
[1721212082157,7.6571978,163.25,163.21,14.46]
[1721212082343,7.6573978,163.25,163.21,14.46]
[1721212082858,6.1259,163.24,163.21,14.46]
[1721212083236,7.6571978,163.25,163.21,14.46]
[1721212083959,7.6571978,163.25,163.22,14.46]
[1721212084254,7.6571978,163.25,163.21,14.46]
[1721212084761,15.9915978,163.25,163.2,14.46]
[1721212084955,15.9915978,163.25,163.19,14.46]
[1721212085448,6.1266,163.23,163.19,14.46]
[1721212085648,1.53181834,163.22,163.19,14.46]
[1721212085840,1.53181834,163.23,163.2,14.46]
[1721212087347,7.65723815,163.25,163.2,14.46]
[1721212087551,7.65723815,163.25,163.21,14.46]
[1721212087854,7.65723815,163.25,163.22,14.46]
[1721212088564,7.65723815,163.25,163.21,14.46]
[1721212089567,7.65723815,163.25,163.2,14.46]
[1721212090465,1.53173815,163.25,163.21,14.46]
[1721212090663,7.65733815,163.25,163.22,14.46]
[1721212091047,1.53173815,163.25,163.22,14.46]
[1721212091364,1.53173815,163.25,163.16,55.0]
[1721212091544,6.1262,163.24,163.21,14.46]
[1721212091742,1.53170352,163.23,163.21,14.46]
[1721212092051,7.65810352,163.23,163.2,14.46]
[1721212092467,7.65760342,163.24,163.21,14.46]
[1721212092668,1.53163541,163.23,163.21,14.46]
[1721212092867,1.53163541,163.23,163.2,14.46]
[1721212093256,1.53163541,163.23,163.21,14.46]
[1721212094261,7.65760174,163.24,163.21,14.46]
[1721212094476,30.8975,163.26,163.22,14.46]
[1721212094477,1.53170174,163.25,163.22,14.46]
[1721212094651,1.53170174,163.25,163.23,14.46]
[1721212094848,1.53155452,163.31,163.24,15.68524362]
[1721212095059,7.65515452,163.31,163.28,14.46]
[1721212095997,7.65515452,163.31,163.24,1.22485627]
[1721212095998,6.1236,163.31,163.29,14.46]
[1721212096185,1.53104327,163.32,163.29,14.46]
[1721212096481,7.65394327,163.32,163.29,14.46]
[1721212096647,7.65394327,163.32,163.28,14.46]
[1721212097570,1.53104327,163.32,163.29,14.46]
[1721212097766,1.53104327,163.32,163.3,14.46]
[1721212098066,2.38383989,163.33,163.3,14.46]
[1721212098268,22.38383989,163.33,163.3,14.46]
[1721212098475,2.38383989,163.33,163.3,14.46]
[1721212098677,22.38383989,163.33,163.3,14.46]
[1721212098975,20.8529152,163.33,163.31,14.46]
[1721212099163,0.8529152,163.33,163.31,14.46]
[1721212099483,0.8529152,163.33,163.26,10.0]
[1721212099662,0.8529152,163.33,163.31,14.46]
[1721212101776,8.50627655,163.33,163.3,14.46]
[1721212101964,0.8529152,163.33,163.31,14.46]
[1721212103055,0.8529152,163.33,163.27,1.2246258]
[1721212103056,0.8529152,163.33,163.32,15.68456152]
[1721212103258,0.8529152,163.33,163.32,14.46]
[1721212104182,0.8529152,163.33,163.32,59.46]
[1721212104555,0.8529152,163.33,163.32,14.46]
[1721212105168,0.8529152,163.33,163.32,14.63]
[1721212105377,0.8529152,163.33,163.32,59.46]
[1721212105687,0.8529152,163.33,163.32,59.63]
[1721212106007,0.8529152,163.33,163.32,59.8]
[1721212106682,0.8529152,163.33,163.32,61.0240683]
[1721212107261,0.8529152,163.33,163.32,61.02407977]
[1721212107963,6.1187,163.44,163.36,10.0]
[1721212108182,6.1187,163.44,163.4,14.46]
[1721212108183,6.1185,163.44,163.4,14.46]
[1721212108683,6.1185,163.44,163.37,45.17]
[1721212108874,6.1185,163.44,163.41,14.46]
[1721212109284,29.45205621,163.45,163.37,55.17]
[1721212109459,23.33395621,163.45,163.37,55.17]
[1721212109663,23.33395621,163.45,163.41,14.46]
[1721212110278,6.1192,163.42,163.37,45.17]
[1721212110473,6.1192,163.42,163.4,14.46]
[1721212110862,6.1194,163.42,163.39,14.46]
[1721212111694,36.2642,163.45,163.39,14.46]
[1721212111873,6.1189,163.43,163.4,14.46]
[1721212112078,6.1185,163.44,163.4,14.46]
[1721212112502,7.64867776,163.43,163.39,14.46]
[1721212113094,6.1189,163.43,163.39,14.46]
[1721212113586,7.64907391,163.42,163.39,14.46]
[1721212113780,6.1193,163.42,163.38,14.46]
[1721212113983,7.6487633,163.43,163.38,14.46]
[1721212114587,6.1189,163.43,163.39,14.46]
[1721212114782,1.52979996,163.43,163.4,14.46]
[1721212115085,21.4677,163.45,163.41,1.22384212]
[1721212115295,15.3493,163.45,163.4,14.46]
[1721212115472,6.1191,163.43,163.37,45.0]
[1721212115677,1.52985948,163.42,163.38,14.46]
[1721212115869,22.10868447,163.43,163.38,14.46]
[1721212116075,7.64868447,163.43,163.38,14.46]
[1721212116392,6.1188,163.43,163.38,14.46]
[1721212116687,7.64861472,163.43,163.38,14.46]
[1721212117268,7.64864153,163.43,163.38,14.46]
[1721212117992,20.5785,163.44,163.38,14.46]
[1721212118187,22.10832428,163.44,163.39,14.46]
[1721212118787,21.4674,163.45,163.4,14.46]
[1721212119097,1.52968932,163.44,163.4,14.46]
[1721212119288,21.4674,163.45,163.4,14.46]
[1721212119600,1.52968923,163.44,163.4,14.46]
[1721212119796,22.10818923,163.44,163.38,14.46]
[1721212120095,22.10818923,163.44,163.39,14.46]
[1721212120596,15.3493,163.45,163.4,14.46]
[1721212120807,1.5296912,163.44,163.4,14.46]
[1721212121093,35.9273,163.45,163.4,14.46]
[1721212121274,7.64813599,163.44,163.4,14.46]
[1721212121476,1.52971547,163.44,163.4,14.46]
[1721212121880,35.9274,163.45,163.41,1.2237827]
[1721212122093,22.10820977,163.44,163.37,45.0]
[1721212122294,15.98970977,163.44,163.39,14.46]
[1721212122979,21.4674,163.45,163.39,14.46]
[1721212123186,21.4674,163.45,163.4,1.22375122]
[1721212123385,21.4674,163.45,163.39,14.46]
[1721212123386,7.64819113,163.44,163.39,14.46]
[1721212123586,22.10819113,163.44,163.39,14.46]
[1721212125495,6.1191,163.43,163.34,26.0389]
[1721212125696,6.1191,163.43,163.38,14.46]
[1721212125886,6.1191,163.43,163.39,14.46]
[1721212126198,7.64903004,163.42,163.37,14.46]
[1721212126398,6.1202,163.4,163.32,10.0]
[1721212126611,7.65027592,163.4,163.35,14.46]
[1721212126976,1.53007592,163.4,163.35,14.46]
[1721212127402,1.53008535,163.4,163.35,14.46]
[1721212127782,15.99008535,163.4,163.35,14.46]
[1721212129499,15.99010675,163.41,163.35,14.46]
[1721212129876,22.10970675,163.41,163.35,14.46]
[1721212130080,14.46,163.4,163.35,14.46]
[1721212131688,14.46,163.4,163.3,15.9051]
[1721212131689,1.53011102,163.39,163.3,25.9051]
[1721212131894,14.46,163.38,163.3,25.9051]
[1721212132195,15.99037541,163.38,163.33,14.46]
[1721212133707,15.99037541,163.38,163.3,25.9051]
[1721212133894,15.99037541,163.38,163.33,14.46]
[1721212134906,15.99037541,163.38,163.32,14.46]
[1721212135208,15.99037541,163.38,163.33,14.46]
[1721212135387,1.53037541,163.38,163.33,14.46]
[1721212135587,15.99037541,163.38,163.32,14.46]
[1721212136385,14.46,163.37,163.31,45.34]
[1721212136598,14.46,163.37,163.31,59.8]
[1721212136783,14.46,163.36,163.31,59.8]
[1721212137111,14.46,163.36,163.31,59.46]
[1721212137312,15.99051667,163.36,163.31,14.46]
[1721212137686,15.99051667,163.36,163.3,14.46]
[1721212137996,1.53052583,163.35,163.3,14.46]
[1721212138185,14.46,163.36,163.3,14.46]
[1721212138500,1.53049552,163.35,163.3,14.46]
[1721212138807,14.46,163.36,163.3,14.46]
[1721212139694,15.9905426,163.37,163.31,14.46]
[1721212140596,15.9905426,163.37,163.32,14.46]
[1721212140903,15.9905426,163.37,163.31,14.46]
[1721212141702,15.9905426,163.37,163.32,14.46]
[1721212142011,14.46,163.37,163.32,14.46]
[1721212142213,15.0087,163.39,163.34,14.46]
[1721212142711,16.53891013,163.39,163.34,14.46]
[1721212143184,30.99891013,163.39,163.34,14.46]
[1721212143712,16.53891013,163.39,163.33,14.46]
[1721212143886,1.530264,163.38,163.33,14.46]
[1721212145509,29.4687,163.39,163.33,14.46]
[1721212146012,30.99893848,163.39,163.33,14.46]
[1721212146404,37.11923848,163.39,163.33,14.46]
[1721212146707,1.53025615,163.38,163.33,14.46]
[1721212147488,14.46,163.36,163.27,6.2306]
[1721212147684,15.9905387,163.35,163.29,14.46]
[1721212148287,14.46,163.35,163.29,24.46]
[1721212148695,14.46,163.35,163.3,59.46]
[1721212149100,14.46,163.36,163.3,59.46]
[1721212149303,22.5839109,163.37,163.31,14.46]
[1721212149505,21.0534,163.37,163.31,24.46]
[1721212149710,21.0534,163.37,163.32,45.0]
[1721212150515,29.4687,163.39,163.34,14.46]
[1721212151215,15.0087,163.39,163.34,14.46]
[1721212151423,29.4687,163.39,163.34,14.46]
[1721212151805,15.0087,163.39,163.34,14.46]
[1721212153820,16.53883102,163.39,163.34,14.46]
[1721212154121,20.5807,163.38,163.33,14.46]
[1721212154709,1.53030395,163.37,163.32,14.46]
[1721212154913,1.53030395,163.37,163.3,14.46]
[1721212155222,14.46,163.35,163.29,14.46]
[1721212155602,14.46,163.35,163.3,14.46]
[1721212155825,15.99052027,163.36,163.3,14.46]
[1721212156039,15.99052037,163.36,163.3,14.46]
[1721212156907,15.99052043,163.35,163.29,14.46]
[1721212157203,14.46,163.35,163.29,14.46]
[1721212157397,14.46,163.34,163.26,10.0]
[1721212157605,14.46,163.34,163.28,14.46]
[1721212158003,14.46,163.34,163.28,24.46]
[1721212158205,15.0087,163.39,163.32,10.0]
[1721212158514,15.0087,163.39,163.35,14.46]
[1721212159110,15.0087,163.39,163.34,14.46]
[1721212160628,16.53883604,163.39,163.34,14.46]
[1721212161414,1.53015671,163.43,163.38,14.46]
[1721212163433,14.46,163.46,163.4,14.46]
[1721212163728,1.52963205,163.45,163.4,14.46]
[1721212163919,15.98963205,163.45,163.4,14.46]
[1721212164312,14.46,163.45,163.4,14.46]
[1721212164712,15.98963213,163.46,163.4,14.46]
[1721212165228,15.9896325,163.45,163.4,14.46]
[1721212166134,15.9896325,163.45,163.39,14.46]
[1721212166839,15.9896325,163.45,163.4,1.22379616]
[1721212167523,15.9896325,163.45,163.39,14.46]
[1721212167713,14.46,163.44,163.39,14.46]
[1721212168527,14.46,163.42,163.37,14.46]
[1721212169032,15.98974601,163.43,163.38,14.46]
[1721212169432,14.46,163.43,163.38,14.46]
[1721212169808,15.9899189,163.44,163.38,14.46]
[1721212170329,15.9899189,163.44,163.39,14.46]
[1721212170330,1.52976383,163.43,163.39,14.46]
[1721212170832,1.52976383,163.43,163.38,14.46]
[1721212171130,1.52976383,163.43,163.39,14.46]
[1721212171334,14.46,163.44,163.39,14.46]
[1721212171832,15.98975305,163.45,163.39,14.46]
[1721212172038,1.52975305,163.45,163.39,14.46]
[1721212172336,14.46,163.45,163.39,14.46]
[1721212172548,14.46,163.42,163.37,14.46]
[1721212173739,1.52992552,163.41,163.37,14.46]
[1721212173927,15.98997009,163.42,163.33,10.0]
[1721212174121,15.98997009,163.42,163.36,14.46]
[1721212174629,14.46,163.42,163.36,14.46]
[1721212175445,14.46,163.42,163.35,10.0]
[1721212175446,14.46,163.42,163.37,14.46]
[1721212175619,14.46,163.42,163.36,14.46]
[1721212175828,7.64814156,163.45,163.38,14.46]
[1721212176148,14.46,163.44,163.39,14.46]
[1721212176321,14.46,163.44,163.38,14.46]
[1721212177124,20.0,163.43,163.38,14.46]
[1721212178156,1.52977244,163.42,163.35,10.0]
[1721212178352,15.98977244,163.42,163.36,59.8]
[1721212178657,1.52991646,163.42,163.37,14.46]
[1721212179722,15.98991646,163.42,163.36,59.8]
[1721212180739,14.46,163.42,163.36,59.8]
[1721212181129,15.98991668,163.42,163.36,59.8]
[1721212181354,14.46,163.41,163.36,46.22393495]
[1721212181552,14.46,163.41,163.36,15.68393495]
[1721212182240,14.46,163.41,163.37,1.22404626]
[1721212182428,15.99005524,163.41,163.37,1.22404626]
[1721212182629,1.53005524,163.41,163.37,1.22404626]
[1721212182831,14.46,163.42,163.37,14.46]
[1721212183153,15.98993568,163.42,163.37,14.46]
[1721212183452,22.10913568,163.42,163.36,14.46]
[1721212183856,1.52993568,163.42,163.37,1.22403102]
[1721212184048,14.46,163.42,163.37,15.68403102]
[1721212184555,14.46,163.42,163.37,1.22403102]
[1721212184733,14.46,163.42,163.37,15.68403102]
[1721212185336,6.1185,163.44,163.38,45.0]
[1721212185536,14.46,163.42,163.38,45.0]
[1721212185741,14.46,163.43,163.38,45.0]
[1721212186550,20.5788,163.43,163.38,45.0]
[1721212187155,7.64898678,163.42,163.37,14.46]
[1721212187341,7.64898678,163.42,163.36,14.46]
[1721212187342,22.10898678,163.42,163.36,14.46]
[1721212187539,1.53000155,163.41,163.36,14.46]
[1721212188459,22.10960155,163.41,163.36,14.46]
[1721212188768,20.5796,163.41,163.36,14.46]
[1721212189142,14.46,163.41,163.36,14.46]
[1721212189631,15.99000227,163.41,163.36,14.46]
[1721212192837,15.99000227,163.41,163.35,24.46]
[1721212193032,15.99000227,163.41,163.34,0.17]
[1721212193033,14.46,163.4,163.34,0.17]
[1721212193237,1.53012701,163.39,163.34,0.17]
[1721212193447,16.93967806,163.42,163.37,14.46]
[1721212193651,20.0,163.41,163.37,14.46]
[1721212193860,31.39967806,163.42,163.38,1.22400181]
[1721212194350,37.51887806,163.42,163.35,10.0]
[1721212194544,37.51887806,163.42,163.36,14.46]
[1721212195551,37.51887806,163.42,163.36,15.68400088]
[1721212195750,37.51887806,163.42,163.36,14.46]
[1721212195945,22.10937806,163.42,163.36,14.46]
[1721212196158,15.9066,163.46,163.37,14.46]
[1721212196159,1.52996376,163.44,163.37,14.46]
[1721212196464,14.46,163.43,163.38,1.22394299]
[1721212197260,22.10824192,163.45,163.39,14.46]
[1721212197466,22.10824192,163.45,163.4,1.22378813]
[1721212197662,7.64824192,163.45,163.4,1.22378813]
[1721212197970,22.10824192,163.45,163.4,1.22378813]
[1721212198154,20.5784,163.45,163.4,1.22378813]
[1721212198471,22.10806705,163.45,163.4,1.22378813]
[1721212199170,7.64806705,163.45,163.39,14.46]
[1721212199342,15.9066,163.46,163.4,25.68373393]
[1721212199656,15.9066,163.46,163.41,45.0]
[1721212199657,30.3666,163.46,163.41,45.0]
[1721212200480,14.46,163.44,163.41,45.0]
[1721212200760,14.46,163.44,163.39,0.34]
[1721212200946,14.46,163.44,163.39,45.34]
[1721212201142,15.98972274,163.43,163.39,45.0]
[1721212201359,20.5788,163.43,163.38,45.0]
[1721212201672,7.64901103,163.42,163.33,25.3738]
[1721212201848,14.46,163.41,163.35,10.0]
[1721212202168,7.64806614,163.45,163.37,24.46]
[1721212202465,14.46,163.42,163.36,14.46]
[1721212202673,22.10913058,163.42,163.37,1.22394447]
[1721212202861,14.46,163.4,163.34,20.0]
[1721212203056,14.46,163.4,163.35,14.46]
[1721212203452,14.46,163.38,163.31,18.24118721]
[1721212203646,14.46,163.39,163.33,10.0]
[1721212203944,14.46,163.4,163.34,15.68404253]
[1721212204452,14.46,163.4,163.34,14.46]
[1721212204950,14.46,163.4,163.33,10.0]
[1721212204951,1.530047,163.39,163.33,14.46]
[1721212205147,14.46,163.37,163.31,14.46]
[1721212205373,15.99034659,163.36,163.3,14.46]
[1721212205544,14.46,163.35,163.29,40.8165]
[1721212205739,14.46,163.36,163.31,24.46]
[1721212206083,14.46,163.36,163.3,14.46]
[1721212206243,14.46,163.36,163.31,10.0]
[1721212207053,14.46,163.36,163.31,14.46]
[1721212207245,14.46,163.36,163.32,45.0]
[1721212207450,14.46,163.36,163.31,45.0]
[1721212207757,14.46,163.36,163.31,55.0]
[1721212208069,20.5815,163.36,163.31,45.0]
[1721212208249,14.46,163.34,163.3,45.17]
[1721212208449,14.46,163.34,163.31,1.2244242]
[1721212208755,14.46,163.35,163.31,1.2244242]
[1721212209346,14.46,163.35,163.3,45.17]
[1721212209758,1.53053026,163.36,163.3,45.17]
[1721212210058,14.46,163.35,163.31,1.22440538]
[1721212210249,7.65159525,163.37,163.3,45.17]
[1721212210444,14.46,163.35,163.3,45.17]
[1721212210865,14.46,163.35,163.3,59.63]
[1721212211765,14.46,163.35,163.31,1.39438948]
[1721212211953,14.46,163.35,163.31,0.17]
[1721212212371,15.9773,163.39,163.33,10.0]
[1721212212675,34.46,163.38,163.34,1.22414856]
[1721212212877,14.46,163.38,163.34,46.22414856]
[1721212213575,14.46,163.39,163.34,60.68414856]
[1721212213867,14.46,163.39,163.34,46.22414856]
[1721212214448,7.64950303,163.42,163.36,10.0]
[1721212214652,14.46,163.4,163.37,1.22392213]
[1721212214862,14.46,163.41,163.37,1.22392213]
[1721212215057,6.1194,163.42,163.37,1.22392213]
[1721212215058,14.46,163.4,163.37,1.22392213]
[1721212215477,16.77889695,163.47,163.38,24.46]
[1721212215691,14.46,163.43,163.39,46.22374294]
[1721212216109,14.46,163.42,163.39,45.0]
[1721212216865,7.66174397,163.51,163.41,10.0]
[1721212217066,15.3129152,163.49,163.43,10.0]
[1721212217264,15.3129152,163.49,163.44,45.0]
[1721212217586,15.3129152,163.49,163.45,1.22335026]
[1721212217965,15.3129152,163.49,163.46,1.22332103]
[1721212218577,0.8529152,163.49,163.46,1.22332103]
[1721212218771,0.8529152,163.49,163.47,24.8]
[1721212218975,0.8529152,163.49,163.48,1.2231144]
[1721212219176,0.8529152,163.49,163.48,59.63]
[1721212219494,0.8529152,163.49,163.48,61.02302003]
[1721212220065,0.8529152,163.49,163.45,14.46]
[1721212220300,0.8529152,163.49,163.44,0.17]
[1721212220482,0.8529152,163.49,163.41,10.0]
[1721212220803,0.69343058,163.49,163.42,0.17]
[1721212220964,0.69343058,163.49,163.43,10.0]
[1721212221770,0.69343058,163.49,163.44,45.0]
[1721212222681,0.69343058,163.49,163.4,51.4141]
[1721212222908,0.69343058,163.49,163.42,10.0]
[1721212223199,0.69343058,163.49,163.43,1.22344325]
[1721212223886,0.69343058,163.49,163.42,10.0]
[1721212224092,0.69343058,163.49,163.43,45.17]
[1721212224296,0.69343058,163.49,163.43,45.0]
[1721212224491,0.69343058,163.49,163.42,10.0]
[1721212224685,0.69343058,163.49,163.43,1.22347726]
[1721212224897,0.69343058,163.49,163.43,46.22347726]
[1721212226073,0.69343058,163.49,163.44,10.17]
[1721212226278,0.69343058,163.49,163.45,46.39322359]
[1721212226483,0.69343058,163.49,163.45,45.17]
[1721212226792,0.69343058,163.49,163.45,45.0]
[1721212226982,0.69343058,163.49,163.44,0.17]
[1721212227189,0.69343058,163.49,163.43,45.34]
[1721212227705,0.69343058,163.49,163.44,10.0]
[1721212227908,0.69343058,163.49,163.43,45.34]
[1721212228209,0.69343058,163.49,163.43,45.17]
[1721212228418,0.69343058,163.49,163.43,45.0]
[1721212229479,2.22273136,163.49,163.43,45.0]
[1721212229889,0.69343058,163.49,163.43,45.0]
[1721212230094,0.69343058,163.49,163.44,10.34]
[1721212230304,0.69343058,163.49,163.45,45.0]
[1721212230913,0.69343058,163.49,163.42,10.0]
[1721212231212,0.69343058,163.49,163.43,45.17]
[1721212231917,0.69343058,163.49,163.44,10.0]
[1721212232205,0.69343058,163.49,163.45,45.34]
[1721212232407,0.69343058,163.49,163.46,10.0]
[1721212232609,0.69343058,163.49,163.47,46.39315406]
[1721212233221,0.69343058,163.49,163.41,10.0]
[1721212233509,0.69343058,163.49,163.42,1.22348726]
[1721212233711,0.69343058,163.49,163.43,1.22348442]
[1721212233878,0.69343058,163.49,163.43,10.0]
[1721212234084,0.69343058,163.49,163.44,1.22338428]
[1721212234909,0.69343058,163.49,163.43,10.0]
[1721212235104,0.69343058,163.49,163.44,45.0]
[1721212236013,2.22261078,163.49,163.42,0.34]
[1721212236186,2.22261078,163.49,163.42,45.34]
[1721212236586,8.33941078,163.49,163.42,45.17]
[1721212237009,16.4611,163.47,163.39,10.0]
[1721212237313,16.4611,163.47,163.37,10.0]
[1721212237314,21.5295913,163.46,163.37,10.0]
[1721212237489,21.5295913,163.46,163.4,10.0]
[1721212237816,21.5295913,163.46,163.36,17.16082982]
[1721212237817,27.6473913,163.46,163.37,10.0]
[1721212238312,7.64772332,163.45,163.36,1.97582982]
[1721212238619,7.64772332,163.45,163.38,10.0]
[1721212238620,1.52962332,163.45,163.38,10.0]
[1721212238986,1.52962332,163.45,163.36,1.97582982]
[1721212238987,7.64772332,163.45,163.36,10.0]
[1721212239397,7.64772332,163.45,163.34,20.0]
[1721212239607,6.1185,163.44,163.35,10.0]
[1721212239825,1.52983518,163.43,163.35,10.0]
[1721212240122,1.52983518,163.43,163.34,10.0]
[1721212240322,14.4,163.42,163.36,14.4]
[1721212240482,14.4,163.41,163.36,14.4]
[1721212241320,14.4,163.41,163.35,14.57]
[1721212241705,1.52988868,163.43,163.36,59.57]
[1721212242009,14.4,163.41,163.36,69.57]
[1721212242218,14.4,163.41,163.36,59.57]
[1721212242719,14.4,163.41,163.36,69.57]
[1721212243199,14.4,163.42,163.36,69.57]
[1721212243390,14.4,163.43,163.37,14.4]
[1721212243724,14.4,163.44,163.39,14.4]
[1721212243927,15.92983991,163.45,163.4,14.4]
[1721212244099,15.92983991,163.45,163.39,14.4]
[1721212244603,14.4,163.45,163.39,14.4]
[1721212245198,15.92965371,163.45,163.39,14.4]
[1721212245799,14.4,163.45,163.39,14.4]
[1721212246609,14.4,163.44,163.39,14.4]
[1721212247193,14.4,163.45,163.4,46.22372307]
[1721212247905,15.92965384,163.46,163.4,60.62372307]
[1721212248100,15.92960137,163.45,163.4,45.0]
[1721212248295,14.4,163.44,163.39,45.0]
[1721212248537,20.5193,163.42,163.36,24.4]
[1721212248824,6.1188,163.44,163.37,45.0]
[1721212248993,14.4,163.42,163.37,45.0]
[1721212249200,22.04876736,163.43,163.37,59.4]
[1721212249507,20.5189,163.43,163.37,59.4]
[1721212249707,14.4,163.43,163.37,59.4]
[1721212249921,15.92987154,163.43,163.38,14.4]
[1721212250327,22.04887154,163.43,163.38,14.4]
[1721212250492,22.04887154,163.43,163.39,1.22389044]
[1721212250697,22.04887154,163.43,163.38,14.4]
[1721212250924,14.4,163.43,163.38,14.4]
[1721212251925,14.4,163.43,163.37,59.74]
[1721212252118,14.4,163.43,163.38,14.74]
[1721212252627,14.4,163.43,163.38,24.74]
[1721212252837,14.4,163.43,163.38,14.74]
[1721212254020,14.4,163.44,163.39,14.4]